fUST/lending_fUST_20251008
["ID","MTS","AMOUNT","RATE_DAILY","PERIOD"]
[389999159,1759926640725,-2467.83,0.00021369,2]
[389999161,1759926640734,-500.0,0.00021369,2]
[389999163,1759926640744,-500.0,0.00021369,2]
[389999165,1759926640753,-500.0,0.00021369,2]
[389999167,1759926640763,-500.0,0.00021369,2]
[389999169,1759926640772,-1313.15,0.00021369,2]
[389999171,1759926640782,-151.0,0.00021369,7]
[389999173,1759926640792,-500.0,0.00021369,2]
[389999176,1759926640801,-151.0,0.00021369,7]
[389999179,1759926640809,-151.0,0.00021369,7]
[389999181,1759926640818,-151.0,0.00021369,7]
[389999183,1759926640827,-500.0,0.00021369,2]
[389999185,1759926640836,-500.0,0.00021369,2]
[389999187,1759926640845,-500.0,0.00021369,2]
[389999189,1759926640854,-1790.0,0.00021369,2]
[389999191,1759926640863,-500.0,0.00021369,2]
[389999193,1759926640873,-500.0,0.00021369,2]
[389999195,1759926640884,-500.0,0.00021369,2]
[389999197,1759926640893,-500.0,0.00021369,2]
[389999199,1759926640902,-151.0,0.00021369,7]
[389999221,1759926640913,-1122.76,0.00021369,2]
[389999229,1759926641179,-151.0,0.00021369,7]
[389999231,1759926641189,-151.0,0.00021369,7]
[389999232,1759926641199,-151.0,0.00021369,7]
[389999234,1759926641208,-151.0,0.00021369,7]
[389999236,1759926641218,-151.0,0.00021369,7]
[389999239,1759926641228,-500.0,0.00021369,2]
[389999240,1759926641237,-151.0,0.00021369,7]
[389999242,1759926641247,-500.0,0.00021369,2]
[389999244,1759926641256,-1313.41,0.00021369,2]
[389999246,1759926641266,-263.93447155,0.00021369,7]
[389999248,1759926641275,-500.0,0.00021369,2]
[389999250,1759926641285,-500.0,0.00021369,2]
[389999252,1759926641294,-500.0,0.00021369,2]
[389999254,1759926641303,-151.0,0.00021369,7]
[389999256,1759926641313,-151.0,0.00021369,7]
[389999258,1759926641323,-151.0,0.00021369,7]
[389999260,1759926641335,-151.0,0.00021369,7]
[389999262,1759926641344,-151.0,0.00021369,7]
[389999264,1759926641353,-760.85,0.00021369,2]
[389999266,1759926641362,-151.0,0.00021369,7]
[389999268,1759926641371,-760.85,0.00021369,2]
[389999270,1759926641380,-760.85,0.00021369,2]
[389999272,1759926641389,-151.0,0.00021369,7]
[389999274,1759926641400,-760.85,0.00021369,2]
[389999276,1759926641411,-500.0,0.00021369,2]
[389999278,1759926641421,-760.85,0.00021369,2]
[389999280,1759926641430,-760.85,0.00021369,2]
[389999282,1759926641439,-760.85,0.00021369,2]
[389999284,1759926641448,-760.85,0.00021369,2]
[389999286,1759926641457,-760.85,0.00021369,2]
[389999288,1759926641466,-760.85,0.00021369,2]
[389999290,1759926641476,-760.85,0.00021369,2]
[389999291,1759926641485,-760.85,0.00021369,2]
[389999293,1759926641495,-760.85,0.00021369,2]
[389999295,1759926641505,-760.85,0.00021369,2]
[389999297,1759926641514,-760.85,0.00021369,2]
[389999299,1759926641524,-200.0,0.00021369,3]
[389999301,1759926641534,-760.85,0.00021369,2]
[389999303,1759926641544,-500.0,0.00021369,2]
[389999305,1759926641553,-200.0,0.00021369,3]
[389999307,1759926641562,-760.85,0.00021369,2]
[389999309,1759926641571,-501.78035389,0.00021369,2]
[389999311,1759926641580,-200.0,0.00021369,3]
[389999313,1759926641590,-760.85,0.00021369,2]
[389999315,1759926641599,-200.0,0.00021369,3]
[389999317,1759926641609,-760.85,0.00021369,2]
[389999319,1759926641618,-200.0,0.00021369,3]
[389999321,1759926641627,-760.85,0.00021369,2]
[389999323,1759926641636,-200.0,0.00021369,3]
[389999325,1759926641645,-760.85,0.00021369,2]
[389999327,1759926641654,-1649.74,0.00021369,2]
[389999329,1759926641663,-760.85,0.00021369,2]
[389999331,1759926641672,-760.85,0.00021369,2]
[389999333,1759926641682,-760.9790148,0.00021369,2]
[389999335,1759926641691,-1788.77,0.00021369,2]
[389999337,1759926641700,-500.0,0.00021369,2]
[389999339,1759926641710,-500.0,0.00021369,2]
[389999341,1759926641720,-156.95726332,0.00021369,2]
[389999343,1759926641729,-500.0,0.00021369,2]
[389999345,1759926641739,-500.0,0.00021369,2]
[389999347,1759926641748,-500.0,0.00021369,2]
[389999349,1759926641757,-616.15,0.00021369,2]
[389999351,1759926641767,-500.0,0.00021369,2]
[389999353,1759926641776,-500.0,0.00021369,2]
[389999354,1759926641786,-500.0,0.00021369,2]
[389999356,1759926641795,-509.73600551,0.00021369,2]
[389999358,1759926641805,-500.0,0.00021369,2]
[389999360,1759926641814,-500.0,0.00021369,2]
[389999363,1759926641824,-500.0,0.00021369,2]
[389999364,1759926641833,-693.71,0.00021369,2]
[389999366,1759926641843,-500.0,0.00021369,2]
[389999368,1759926641852,-500.0,0.00021369,2]
[389999370,1759926641862,-500.0,0.00021369,2]
[389999372,1759926641871,-481.50566544,0.00021369,2]
[389999374,1759926641880,-829.97,0.00021369,2]
[389999376,1759926641891,-1270.89,0.00021369,2]
[389999379,1759926641900,-500.0,0.00021369,2]
[389999380,1759926641910,-756.15,0.00021369,2]
[389999382,1759926641919,-509.38,0.00021369,2]
[389999384,1759926641928,-521.81,0.00021369,2]
[389999386,1759926641938,-940.61,0.00021369,2]
[389999388,1759926641947,-500.0,0.00021369,2]
[389999389,1759926641957,-500.0,0.00021369,2]
[389999390,1759926641968,-1201.38,0.00021369,2]
[389999391,1759926641978,-500.0,0.00021369,2]
[389999392,1759926641988,-500.0,0.00021369,2]
[389999393,1759926641998,-500.0,0.00021369,2]
[389999394,1759926642010,-500.0,0.00021369,2]
[389999395,1759926642020,-500.0,0.00021369,2]
[389999396,1759926642031,-481.21924155,0.00021369,2]
[389999397,1759926642041,-151.0,0.00021369,7]
[389999398,1759926642050,-151.0,0.00021369,7]
[389999399,1759926642060,-151.0,0.00021369,7]
[389999400,1759926642070,-151.0,0.00021369,7]
[389999401,1759926642080,-151.0,0.00021369,7]
[389999402,1759926642089,-151.0,0.00021369,7]
[389999404,1759926642099,-151.0,0.00021369,7]
[389999406,1759926642108,-500.0,0.00021369,2]
[389999408,1759926642118,-151.0,0.00021369,7]
[389999410,1759926642127,-151.0,0.00021369,7]
[389999412,1759926642136,-151.0,0.00021369,7]
[389999414,1759926642146,-500.0,0.00021369,2]
[389999416,1759926642155,-151.0,0.00021369,7]
[389999418,1759926642165,-254.735712,0.00021369,7]
[389999420,1759926642175,-500.0,0.00021369,2]
[389999422,1759926642184,-500.0,0.00021369,2]
[389999424,1759926642194,-500.0,0.00021369,2]
[389999426,1759926642203,-1549.87,0.00021369,2]
[389999428,1759926642213,-500.0,0.00021369,2]
[389999430,1759926642222,-500.0,0.00021369,2]
[389999432,1759926642232,-395.58439589,0.00021369,2]
[389999434,1759926642243,-500.0,0.00021369,2]
[389999436,1759926642252,-500.0,0.00021369,2]
[389999438,1759926642262,-500.0,0.00021369,2]
[389999440,1759926642272,-500.0,0.00021369,2]
[389999442,1759926642281,-500.0,0.00021369,2]
[389999444,1759926642293,-682.91,0.00021369,2]
[389999447,1759926642302,-500.0,0.00021369,2]
[389999448,1759926642312,-2826.28,0.00021369,2]
[389999450,1759926642322,-534.58,0.00021369,2]
[389999453,1759926642334,-500.0,0.00021369,2]
[389999455,1759926642346,-727.63,0.00021369,2]
[389999457,1759926642355,-500.0,0.00021369,2]
[389999459,1759926642365,-500.0,0.00021369,2]
[389999461,1759926642375,-1006.35,0.00021369,2]
[389999463,1759926642384,-500.0,0.00021369,2]
[389999464,1759926642394,-583.02,0.00021369,2]
[389999466,1759926642403,-500.0,0.00021369,2]
[389999469,1759926642414,-558.22,0.00021369,2]
[389999471,1759926642424,-1089.14,0.00021369,2]
[389999473,1759926642435,-500.0,0.00021369,2]
[389999474,1759926642444,-500.0,0.00021369,2]
[389999476,1759926642454,-482.06108906,0.00021369,2]
[389999479,1759926642464,-1431.13,0.00021369,2]
[389999481,1759926642474,-1466.6,0.00021369,2]
[389999482,1759926642484,-500.0,0.00021369,2]
[389999484,1759926642494,-500.0,0.00021369,2]
[389999487,1759926642503,-5569.88,0.00021369,2]
[389999488,1759926642513,-500.0,0.00021369,2]
[389999491,1759926642523,-756.98,0.00021369,2]
[389999493,1759926642532,-151.0,0.00021369,7]
[389999495,1759926642542,-151.0,0.00021369,7]
[389999497,1759926642551,-151.0,0.00021369,7]
[389999498,1759926642561,-151.0,0.00021369,7]
[389999501,1759926642570,-151.0,0.00021369,7]
[389999502,1759926642579,-604.66,0.00021369,2]
[389999504,1759926642589,-896.11,0.00021369,2]
[389999506,1759926642599,-500.0,0.00021369,2]
[389999509,1759926642610,-500.0,0.00021369,2]
[389999511,1759926642620,-432.32822683,0.00021369,2]
[389999513,1759926642629,-776.81,0.00021369,2]
[389999515,1759926642639,-869.58,0.00021369,2]
[389999517,1759926642649,-500.0,0.00021369,2]
[389999519,1759926642658,-2031.57,0.00021369,2]
[389999520,1759926642668,-500.0,0.00021369,2]
[389999522,1759926642678,-500.33300307,0.00021369,2]
[389999525,1759926642687,-361.74685083,0.00021369,2]
[389999527,1759926642697,-500.0,0.00021369,2]
[389999528,1759926642707,-500.0,0.00021369,2]
[389999531,1759926642716,-500.0,0.00021369,2]
[389999533,1759926642726,-500.96633951,0.00021369,2]
[389999535,1759926642735,-4918.09,0.00021369,2]
[389999536,1759926642745,-507.1912684,0.00021369,2]
[389999538,1759926642755,-500.0,0.00021369,2]
[389999540,1759926642764,-500.0,0.00021369,2]
[389999543,1759926642776,-500.0,0.00021369,2]
[389999545,1759926642785,-1018.24,0.00021369,2]
[389999547,1759926642795,-500.0,0.00021369,2]
[389999549,1759926642805,-500.0,0.00021369,2]
[389999551,1759926642814,-500.0,0.00021369,2]
[389999553,1759926642824,-500.0,0.00021369,2]
[389999555,1759926642834,-500.0,0.00021369,2]
[389999557,1759926642843,-500.0,0.00021369,2]
[389999559,1759926642852,-500.0,0.00021369,2]
[389999561,1759926642862,-500.0,0.00021369,2]
[389999563,1759926642871,-500.0,0.00021369,2]
[389999565,1759926642883,-500.0,0.00021369,2]
[389999567,1759926642892,-508.97965674,0.00021369,2]
[389999569,1759926642902,-732.68,0.00021369,2]
[389999571,1759926642911,-501.25366752,0.00021369,2]
[389999573,1759926642920,-414.05753028,0.00021369,2]
[389999575,1759926642930,-500.0,0.00021369,2]
[389999577,1759926642939,-1417.97,0.00021369,2]
[389999579,1759926642949,-500.0,0.00021369,2]
[389999581,1759926642958,-500.0,0.00021369,2]
[389999583,1759926642969,-500.0,0.00021369,2]
[389999585,1759926642978,-738.99,0.00021369,2]
[389999587,1759926642987,-1283.08,0.00021369,2]
[389999589,1759926642997,-500.0,0.00021369,2]
[389999591,1759926643007,-1025.57,0.00021369,2]
[389999593,1759926643017,-851.1,0.00021369,2]
[389999595,1759926643026,-1556.1,0.00021369,2]
[389999597,1759926643036,-500.0,0.00021369,2]
[389999599,1759926643047,-500.0,0.00021369,2]
[389999601,1759926643056,-1779.32,0.00021369,2]
[389999603,1759926643065,-151.0,0.00021369,7]
[389999605,1759926643075,-151.341958,0.00021369,7]
[389999607,1759926643084,-151.0,0.00021369,7]
[389999609,1759926643093,-151.0,0.00021369,7]
[389999611,1759926643102,-157.139098,0.00021369,7]
[389999613,1759926643111,-501.59578527,0.00021369,2]
[389999615,1759926643120,-502.31468854,0.00021369,2]
[389999617,1759926643128,-500.0,0.00021369,2]
[389999619,1759926643138,-942.73,0.00021369,2]
[389999621,1759926643148,-522.13,0.00021369,2]
[389999623,1759926643157,-151.0,0.00021369,2]
[389999625,1759926643167,-881.58,0.00021369,2]
[389999627,1759926643176,-500.0,0.00021369,2]
[389999629,1759926643185,-151.0,0.00021369,2]
[389999631,1759926643194,-500.0,0.00021369,2]
[389999633,1759926643204,-500.0,0.00021369,2]
[389999635,1759926643213,-500.0,0.00021369,2]
[389999637,1759926643222,-1725.99,0.00021369,2]
[389999639,1759926643232,-500.0,0.00021369,2]
[389999641,1759926643241,-500.0,0.00021369,2]
[389999643,1759926643251,-524.7,0.00021369,2]
[389999645,1759926643260,-500.0,0.00021369,2]
[389999647,1759926643270,-500.0,0.00021369,2]
[389999649,1759926643279,-500.0,0.00021369,2]
[389999651,1759926643288,-500.0,0.00021369,2]
[389999653,1759926643298,-500.0,0.00021369,2]
[389999655,1759926643307,-500.0,0.00021369,2]
[389999657,1759926643316,-500.0,0.00021369,2]
[389999659,1759926643326,-500.0,0.00021369,2]
[389999661,1759926643341,-500.0,0.00021369,2]
[389999663,1759926643352,-500.0,0.00021369,2]
[389999665,1759926643361,-487.02,0.00021369,2]
[389999667,1759926643371,-500.0,0.00021369,2]
[389999669,1759926643380,-500.0,0.00021369,2]
[389999671,1759926643390,-1432.45,0.00021369,2]
[389999673,1759926643400,-612.32462654,0.00021369,2]
[389999675,1759926643411,-1218.7,0.00021369,2]
[389999677,1759926643421,-198.0,0.00021369,2]
[389999679,1759926643430,-1106.36,0.00021369,2]
[389999681,1759926643440,-151.0,0.00021369,2]
[389999683,1759926643450,-500.0,0.00021369,2]
[389999685,1759926643460,-151.0,0.00021369,2]
[389999687,1759926643469,-500.0,0.00021369,2]
[389999689,1759926643478,-1843.31,0.00021369,2]
[389999691,1759926643488,-500.0,0.00021369,2]
[389999693,1759926643498,-500.0,0.00021369,2]
[389999695,1759926643507,-865.99,0.00021369,2]
[389999697,1759926643516,-670.35,0.00021369,2]
[389999699,1759926643526,-500.0,0.00021369,2]
[389999701,1759926643536,-1100.51,0.00021369,2]
[389999703,1759926643545,-500.0,0.00021369,2]
[389999705,1759926643555,-500.0,0.00021369,2]
[389999707,1759926643565,-500.0,0.00021369,2]
[389999709,1759926643574,-500.0,0.00021369,2]
[389999711,1759926643583,-1024.19,0.00021369,2]
[389999713,1759926643592,-500.0,0.00021369,2]
[389999715,1759926643602,-500.0,0.00021369,2]
[389999717,1759926643611,-500.0,0.00021369,2]
[389999719,1759926643621,-601.68,0.00021369,2]
[389999721,1759926643630,-500.0,0.00021369,2]
[389999723,1759926643640,-500.0,0.00021369,2]
[389999725,1759926643650,-500.0,0.00021369,2]
[389999727,1759926643660,-5273.51,0.00021369,2]
[389999729,1759926643670,-1088.78,0.00021369,2]
[389999731,1759926643679,-500.0,0.00021369,2]
[389999733,1759926643689,-301.999998,0.00021369,7]
[389999735,1759926643698,-500.0,0.00021369,2]
[389999737,1759926643708,-724.63,0.00021369,2]
[389999739,1759926643717,-151.0,0.00021369,7]
[389999741,1759926643727,-3216.62,0.00021369,2]
[389999743,1759926643737,-1509.42,0.00021369,2]
[389999745,1759926643746,-500.0,0.00021369,2]
[389999747,1759926643757,-500.0,0.00021369,2]
[389999749,1759926643767,-830.64,0.00021369,2]
[389999751,1759926643777,-500.0,0.00021369,2]
[389999753,1759926643786,-935.07,0.00021369,2]
[389999755,1759926643796,-2700.83,0.00021369,2]
[389999758,1759926643806,-500.0,0.00021369,2]
[389999760,1759926643816,-500.0,0.00021369,2]
[389999762,1759926643826,-1138.45,0.00021369,2]
[389999764,1759926643835,-2438.57,0.00021369,2]
[389999766,1759926643845,-500.0,0.00021369,2]
[389999768,1759926643854,-500.0,0.00021369,2]
[389999770,1759926643864,-512.4033395,0.00021369,2]
[389999772,1759926643873,-500.0,0.00021369,2]
[389999774,1759926643883,-500.0,0.00021369,2]
[389999776,1759926643894,-466.71020683,0.00021369,2]
[389999778,1759926643903,-500.0,0.00021369,2]
[389999780,1759926643914,-500.0,0.00021369,2]
[389999782,1759926643924,-500.0,0.00021369,2]
[389999784,1759926643934,-525.93,0.00021369,2]
[389999786,1759926643943,-500.0,0.00021369,2]
[389999788,1759926643953,-506.64777451,0.00021369,2]
[389999790,1759926643962,-500.0,0.00021369,2]
[389999792,1759926643972,-546.86618692,0.00021369,2]
[389999794,1759926643982,-1134.6,0.00021369,2]
[389999796,1759926643992,-483.80748665,0.00021369,2]
[389999798,1759926644001,-2183.08,0.00021369,2]
[389999800,1759926644011,-151.0,0.00021369,7]
[389999802,1759926644020,-151.0,0.00021369,7]
[389999804,1759926644030,-190.334255,0.00021369,7]
[389999806,1759926644039,-480.5587753,0.00021369,2]
[389999808,1759926644050,-500.0,0.00021369,2]
[389999810,1759926644060,-5661.73,0.00021369,2]
[389999812,1759926644070,-500.0,0.00021369,2]
[389999814,1759926644079,-2186.92,0.00021369,2]
[389999816,1759926644089,-500.0,0.00021369,2]
[389999818,1759926644098,-500.0,0.00021369,2]
[389999820,1759926644108,-151.0,0.00021369,7]
[389999822,1759926644117,-151.0,0.00021369,7]
[389999824,1759926644127,-151.932092,0.00021369,7]
[389999826,1759926644136,-1693.4,0.00021369,2]
[389999828,1759926644146,-500.0,0.00021369,2]
[389999830,1759926644155,-266.76454757,0.00021369,2]
[389999833,1759926644167,-500.0,0.00021369,2]
[389999835,1759926644177,-611.62,0.00021369,2]
[389999837,1759926644186,-2780.94,0.00021369,2]
[389999839,1759926644196,-500.0,0.00021369,2]
[389999841,1759926644206,-151.0,0.00021369,7]
[389999843,1759926644215,-212.548786,0.00021369,7]
[389999845,1759926644224,-1419.7,0.00021369,2]
[389999846,1759926644235,-500.0,0.00021369,2]
[389999848,1759926644244,-1374.35,0.00021369,2]
[389999851,1759926644254,-516.85,0.00021369,2]
[389999853,1759926644264,-9902.59,0.00021369,2]
[389999855,1759926644274,-326.795917,0.00021369,7]
[389999857,1759926644284,-326.795917,0.00021369,7]
[389999859,1759926644294,-1211.23,0.00021369,2]
[389999861,1759926644304,-500.0,0.00021369,2]
[389999863,1759926644313,-326.795917,0.00021369,7]
[389999864,1759926644322,-326.795917,0.00021369,7]
[389999867,1759926644333,-326.795917,0.00021369,7]
[389999868,1759926644347,-326.795917,0.00021369,7]
[389999870,1759926644356,-326.795917,0.00021369,7]
[389999872,1759926644368,-326.795917,0.00021369,7]
[389999874,1759926644378,-326.795917,0.00021369,7]
[389999876,1759926644387,-326.795917,0.00021369,7]
[389999878,1759926644397,-326.795917,0.00021369,7]
[389999880,1759926644407,-326.795917,0.00021369,7]
[389999882,1759926644417,-654.46,0.00021369,2]
[389999884,1759926644427,-326.795917,0.00021369,7]
[389999886,1759926644437,-654.46,0.00021369,2]
[389999888,1759926644448,-654.46,0.00021369,2]
[389999890,1759926644458,-326.795917,0.00021369,7]
[389999892,1759926644469,-326.795917,0.00021369,7]
[389999895,1759926644479,-654.46,0.00021369,2]
[389999897,1759926644489,-326.795917,0.00021369,7]
[389999899,1759926644499,-654.46,0.00021369,2]
[389999900,1759926644509,-326.795917,0.00021369,7]
[389999903,1759926644519,-326.795917,0.00021369,7]
[389999904,1759926644528,-654.46,0.00021369,2]
[389999907,1759926644538,-326.795917,0.00021369,7]
[389999908,1759926644547,-654.46,0.00021369,2]
[389999910,1759926644557,-326.795926,0.00021369,7]
[389999913,1759926644567,-654.46,0.00021369,2]
[389999914,1759926644576,-654.46,0.00021369,2]
[389999916,1759926644586,-654.46,0.00021369,2]
[389999919,1759926644596,-654.46,0.00021369,2]
[389999921,1759926644606,-654.46,0.00021369,2]
[389999923,1759926644615,-500.0,0.00021369,2]
[389999925,1759926644624,-819.61,0.00021369,2]
[389999926,1759926644634,-654.46,0.00021369,2]
[389999928,1759926644643,-654.46,0.00021369,2]
[389999930,1759926644653,-654.46,0.00021369,2]
[389999933,1759926644663,-654.46,0.00021369,2]
[389999935,1759926644673,-654.46,0.00021369,2]
[389999937,1759926644683,-654.46,0.00021369,2]
[389999939,1759926644693,-654.46,0.00021369,2]
[389999941,1759926644703,-654.46,0.00021369,2]
[389999942,1759926644712,-654.46,0.00021369,2]
[389999944,1759926644723,-654.46,0.00021369,2]
[389999946,1759926644732,-654.46,0.00021369,2]
[389999948,1759926644742,-654.61897305,0.00021369,2]
[389999950,1759926644752,-13817.46,0.00021369,2]
[389999952,1759926644761,-500.0,0.00021369,2]
[389999954,1759926644772,-1832.16,0.00021369,2]
[389999957,1759926644782,-191.16,0.00021369,2]
[389999959,1759926644792,-1712.7,0.00021369,2]
[389999960,1759926644801,-500.0,0.00021369,2]
[389999963,1759926644811,-805.44,0.00021369,2]
[389999965,1759926644822,-151.0,0.00021369,7]
[389999967,1759926644833,-151.0,0.00021369,7]
[389999969,1759926644843,-151.0,0.00021369,7]
[389999971,1759926644854,-465.67838721,0.00021369,2]
[389999973,1759926644864,-3669.88,0.00021369,2]
[389999975,1759926644875,-151.0,0.00021369,7]
[389999977,1759926644885,-957.1,0.00021369,2]
[389999979,1759926644895,-151.0,0.00021369,7]
[389999981,1759926644905,-151.0,0.00021369,7]
[389999983,1759926644915,-151.0,0.00021369,7]
[389999985,1759926644925,-151.0,0.00021369,7]
[389999987,1759926644936,-151.0,0.00021369,7]
[389999989,1759926644945,-151.0,0.00021369,7]
[389999991,1759926644955,-151.0,0.00021369,7]
[389999993,1759926644964,-151.0,0.00021369,7]
[389999995,1759926644975,-971.98,0.00021369,2]
[389999997,1759926644986,-151.0,0.00021369,7]
[389999999,1759926644995,-151.0,0.00021369,7]
[390000001,1759926645005,-151.0,0.00021369,7]
[390000003,1759926645015,-151.0,0.00021369,7]
[390000005,1759926645025,-500.0,0.00021369,2]
[390000007,1759926645035,-151.0,0.00021369,7]
[390000009,1759926645045,-198.609919,0.00021369,7]
[390000011,1759926645055,-500.0,0.00021369,2]
[390000013,1759926645065,-500.0,0.00021369,2]
[390000015,1759926645076,-8155.37,0.00021369,2]
[390000017,1759926645086,-1262.6,0.00021369,2]
[390000019,1759926645096,-151.0,0.00021369,7]
[390000021,1759926645105,-151.0,0.00021369,7]
[390000023,1759926645115,-151.0,0.00021369,7]
[390000025,1759926645125,-500.0,0.00021369,2]
[390000028,1759926645135,-153.477985,0.00021369,7]
[390000030,1759926645144,-500.0,0.00021369,2]
[390000032,1759926645154,-584.28,0.00021369,2]
[390000034,1759926645165,-3066.83,0.00021369,2]
[390000036,1759926645174,-1160.72,0.00021369,2]
[390000037,1759926645184,-500.0,0.00021369,2]
[390000039,1759926645193,-167.012517,0.00021369,7]
[390000042,1759926645205,-167.012517,0.00021369,7]
[390000044,1759926645216,-167.012517,0.00021369,7]
[390000063,1759926645406,-167.012517,0.00021369,7]
[390000065,1759926645418,-167.012517,0.00021369,7]
[390000066,1759926645428,-167.012517,0.00021369,7]
[390000067,1759926645438,-167.012517,0.00021369,7]
[390000068,1759926645448,-167.012517,0.00021369,7]
[390000069,1759926645458,-167.012517,0.00021369,7]
[390000070,1759926645468,-167.012517,0.00021369,7]
[390000071,1759926645478,-500.0,0.00021369,2]
[390000072,1759926645488,-167.012517,0.00021369,7]
[390000073,1759926645498,-167.012517,0.00021369,7]
[390000074,1759926645509,-167.012517,0.00021369,7]
[390000075,1759926645519,-167.012517,0.00021369,7]
[390000076,1759926645529,-167.012517,0.00021369,7]
[390000077,1759926645539,-167.012517,0.00021369,7]
[390000078,1759926645549,-167.012517,0.00021369,7]
[390000079,1759926645562,-167.012517,0.00021369,7]
[390000080,1759926645571,-500.0,0.00021369,2]
[390000081,1759926645582,-167.012517,0.00021369,7]
[390000082,1759926645592,-167.012525,0.00021369,7]
[390000083,1759926645602,-1917.81,0.00021369,2]
[390000084,1759926645612,-3980.97,0.00021369,2]
[390000085,1759926645621,-1259.82,0.00021369,2]
[390000086,1759926645631,-500.0,0.00021369,2]
[390000087,1759926645642,-500.0,0.00021369,2]
[390000088,1759926645651,-500.0,0.00021369,2]
[390000089,1759926645661,-151.0,0.00021369,7]
[390000090,1759926645671,-151.0,0.00021369,7]
[390000091,1759926645681,-151.0,0.00021369,7]
[390000092,1759926645690,-204.276075,0.00021369,7]
[390000093,1759926645700,-500.0,0.00021369,2]
[390000094,1759926645711,-583.22,0.00021369,2]
[390000095,1759926645721,-1000.0,0.00021369,2]
[390000096,1759926645732,-1000.0,0.00021369,2]
[390000097,1759926645742,-9632.95,0.00021369,2]
[390000098,1759926645753,-1000.0,0.00021369,2]
[390000099,1759926645763,-1000.0,0.00021369,2]
[390000100,1759926645773,-500.0,0.00021369,2]
[390000101,1759926645784,-151.0,0.00021369,7]
[390000102,1759926645795,-1000.0,0.00021369,2]
[390000103,1759926645804,-151.0,0.00021369,7]
[390000104,1759926645814,-1000.0,0.00021369,2]
[390000105,1759926645824,-151.0,0.00021369,7]
[390000106,1759926645833,-151.0,0.00021369,7]
[390000107,1759926645842,-1000.0,0.00021369,2]
[390000108,1759926645852,-500.0,0.00021369,2]
[390000109,1759926645862,-151.0,0.00021369,7]
[390000110,1759926645870,-1000.0,0.00021369,2]
[390000111,1759926645881,-151.0,0.00021369,7]
[390000112,1759926645890,-151.0,0.00021369,7]
[390000113,1759926645900,-1015.706381,0.00021369,2]
[390000114,1759926645910,-151.0,0.00021369,7]
[390000115,1759926645920,-151.0,0.00021369,7]
[390000116,1759926645929,-151.0,0.00021369,7]
[390000117,1759926645939,-151.0,0.00021369,7]
[390000118,1759926645949,-151.0,0.00021369,7]
[390000119,1759926645959,-151.0,0.00021369,7]
[390000120,1759926645969,-151.0,0.00021369,7]
[390000121,1759926645979,-151.0,0.00021369,7]
[390000122,1759926645990,-151.0,0.00021369,7]
[390000123,1759926646007,-151.0,0.00021369,7]
[390000124,1759926646017,-151.0,0.00021369,7]
[390000125,1759926646027,-151.0,0.00021369,7]
[390000126,1759926646041,-151.0,0.00021369,7]
[390000127,1759926646052,-151.0,0.00021369,7]